fUSD/lending_fUSD_20240217
["ID","MTS","AMOUNT","RATE_DAILY","PERIOD"]
[314304149,1708167038889,-16902.7416,0.000449,2]
[314304150,1708167038898,-477.9298,0.000449,2]
[314304151,1708167038907,-395.06081741,0.000449,6]
[314304152,1708167038917,-186.17777757,0.000449,6]
[314304153,1708167038926,-251.43,0.0004493,15]
[314304154,1708167038935,-206.0,0.00044991,21]
[314304155,1708167038944,-10688.93327716,0.00044999,7]
[314304156,1708167038953,-4307.6758235,0.00045,17]
[314304157,1708167038966,-526.10723241,0.00045,17]
[314304158,1708167038975,-404.92800675,0.00045,4]
[314304159,1708167038984,-2576.43562501,0.00045,7]
[314304160,1708167038996,-2242.76120139,0.00045,7]
[314304167,1708167040760,-1167.813902,0.00041033,13]
[314304168,1708167040773,-2065.497,0.00041033,13]
[314304169,1708167040814,-1207.02848384,0.00041033,13]
[314304170,1708167040824,-480.33229707,0.00045,7]
[314304171,1708167041038,-24700.47087653,0.00045,7]
[314304172,1708167041047,-29040.0,0.00045,7]
[314304173,1708167041057,-279.65731281,0.00045,4]
[314304174,1708167041065,-152.43,0.000452,5]
[314304175,1708167041075,-152.43,0.000452,5]
[314304176,1708167041084,-180.0,0.00045314,2]
[314304177,1708167041093,-305.9,0.00045852,2]
[314304178,1708167041102,-174.99455923,0.00046101,2]
[314304179,1708167041112,-2500.0,0.00046101,2]
[314304180,1708167041121,-186.17777757,0.00046444,8]
[314304181,1708167041131,-395.06081732,0.00046456,8]
[314304182,1708167041140,-3096.11,0.00047613,120]
[314304183,1708167041150,-186.17777757,0.00047989,9]
[314304184,1708167041159,-502.0110177,0.00048,10]
[314304185,1708167041168,-395.06081732,0.00048011,9]
[314304186,1708167041178,-305.9,0.00048116,2]
[314304187,1708167041188,-152.43,0.000486,6]
[314304188,1708167041197,-152.43,0.000486,6]
[314304189,1708167041206,-251.43,0.00048666,120]
[314304190,1708167041216,-1000.0,0.00048841,2]
[314304191,1708167041225,-993.41463732,0.0004894,2]
[314304192,1708167041234,-7080.0655,0.00048941,2]
[314304193,1708167041244,-953.0,0.00048947,2]
[314304194,1708167041253,-765.933,0.00048947,2]
[314304195,1708167041263,-229.572,0.00048947,2]
[314304196,1708167041272,-151.302,0.00048947,2]
[314304197,1708167041281,-180.0,0.00048947,2]
[314304198,1708167041290,-164.113,0.00048947,2]
[314304199,1708167041299,-150.0,0.00048947,2]
[314304200,1708167041308,-181.935,0.00048947,2]
[314304201,1708167041317,-206.228,0.00048947,2]
[314304202,1708167041326,-211.956,0.00048947,2]
[314304203,1708167041336,-150.0,0.00048947,2]
[314304204,1708167041345,-500.0,0.00049,20]
[314304205,1708167041354,-150.0,0.00049214,30]
[314304206,1708167041364,-4562.795,0.00049215,2]
[314304207,1708167041373,-160.01,0.00049291,2]
[314304208,1708167041382,-750.0,0.00049314,3]
[314304209,1708167041391,-816.67489785,0.00049315,2]
[314304210,1708167041400,-503.00157731,0.00049315,60]
[314304211,1708167041410,-500.0,0.00049315,60]
[314304212,1708167041419,-619.2953211,0.00049315,60]
[314304213,1708167041429,-531.47654566,0.00049315,60]
[314304214,1708167041438,-500.0,0.00049315,60]
[314304215,1708167041446,-186.17777757,0.00049533,11]
[314304216,1708167041457,-395.06081732,0.00049567,11]
[314304217,1708167041466,-8068.51835413,0.000497,7]
[314304218,1708167041475,-160.01,0.00049702,2]
[314304219,1708167041485,-300.0,0.00049762,30]
[314304220,1708167041494,-1583.0,0.00049794,117]
[314304221,1708167041504,-5083.067,0.000499,2]
[314304222,1708167041513,-167.92100436,0.000499,14]
[314304223,1708167041522,-7492.23221659,0.0004999,13]
[314304224,1708167041531,-10000.0,0.0005,30]
[314304225,1708167041542,-26766.0,0.0005,12]
[314304226,1708167041553,-10000.0,0.0005,2]
[314304227,1708167041562,-160.01,0.00050113,2]
[314304228,1708167041572,-450.0,0.0005031,30]
[314304229,1708167041581,-305.9,0.0005038,2]
[314304231,1708167041591,-7492.23221659,0.000504,13]
[314304233,1708167041600,-160.01,0.00050524,2]
[314304234,1708167041609,-1000.0,0.00050606,120]
[314304235,1708167041619,-750.0,0.00050684,3]
[314304236,1708167041629,-600.0,0.00050858,30]
[314304237,1708167041638,-160.01,0.00050934,2]
[314304238,1708167041648,-500.0,0.00050999,2]
[314304239,1708167041657,-186.17777757,0.00051078,12]
[314304240,1708167041666,-395.06081732,0.00051122,12]
[314304241,1708167041675,-160.01,0.00051345,2]
[314304242,1708167041685,-750.0,0.00051406,30]
[314304243,1708167041694,-5000.0,0.000515,60]
[314304244,1708167041703,-167.330158,0.00051509,30]
[314304245,1708167041713,-160.01,0.00051756,2]
[314304246,1708167041722,-2000.0,0.000518,2]
[314304247,1708167041731,-7492.23221659,0.00051826,13]
[314304248,1708167041740,-1074.53,0.00051852,30]
[314304249,1708167041751,-152.43,0.000519,7]
[314304250,1708167041761,-152.43,0.000519,7]
[314304251,1708167041771,-953.0,0.00051947,120]
[314304252,1708167041779,-150.0,0.00051947,120]
[314304253,1708167041788,-460.49241517,0.00051954,30]
[314304254,1708167041797,-14984.4644332,0.0005199,13]
[314304255,1708167041806,-160.0,0.00052,120]
[314304256,1708167041815,-10000.0,0.00052,35]
[314304257,1708167041825,-160.0,0.00052,120]
[314304258,1708167041835,-17508.0,0.00052,120]
[314304259,1708167041844,-7492.23221659,0.00052045,13]
[314304260,1708167041853,-284.3272019,0.00052053,24]
[314304261,1708167041862,-500.0,0.00052054,3]
[314304262,1708167041871,-20000.0,0.00052055,120]
[314304263,1708167041881,-200.0,0.00052153,30]
[314304264,1708167041890,-160.01,0.00052167,2]
[314304265,1708167041900,-251.43,0.00052402,120]
[314304266,1708167041909,-2308.32247732,0.00052406,4]
[314304267,1708167041918,-2154.15002805,0.00052406,7]
[314304268,1708167041927,-592.39125771,0.00052406,3]
[314304269,1708167041936,-2733.06829318,0.00052406,7]
[314304270,1708167041946,-411.168462,0.00052406,3]
[314304271,1708167041993,-945.36,0.0005245,2]
[314304272,1708167042003,-7492.23221659,0.00052492,14]
[314304273,1708167042013,-206.0,0.00052496,40]
[314304274,1708167042023,-3000.0,0.0005251,30]
[314304275,1708167042032,-160.01,0.00052577,2]
[314304276,1708167042041,-186.17777757,0.00052622,13]
[314304277,1708167042050,-305.9,0.00052643,2]
[314304278,1708167042059,-160.0,0.00052658,120]
[314304279,1708167042067,-395.06081732,0.00052678,13]
[314304280,1708167042076,-223.021788,0.00052748,100]
[314304281,1708167042085,-3482.6,0.0005286,117]
[314304282,1708167042094,-160.0,0.00052877,120]
[314304283,1708167042103,-160.01,0.00052988,2]
[314304284,1708167042112,-5000.0,0.00053,62]
[314304285,1708167042122,-155.0,0.00053,14]
[314304286,1708167042131,-1000.0,0.00053,53]
[314304287,1708167042141,-151.41,0.00053,120]
[314304288,1708167042150,-7492.23221659,0.0005314,14]
[314304289,1708167042158,-223.021788,0.00053148,101]
[314304290,1708167042167,-160.0,0.00053315,120]
[314304291,1708167042176,-160.01,0.00053399,2]
[314304292,1708167042185,-223.021788,0.00053448,101]
[314304293,1708167042194,-44953.3932995,0.0005349,14]
[314304294,1708167042203,-89669.25653396,0.000535,120]
[314304295,1708167042212,-386.47327507,0.000535,120]
[314304296,1708167042222,-1337.42474932,0.00053519,120]
[314304297,1708167042231,-1153.18587732,0.00053746,120]
[314304298,1708167042240,-223.021788,0.00053748,101]
[314304299,1708167042249,-160.0,0.00053753,120]
[314304300,1708167042259,-1337.42474932,0.00053788,120]
[314304301,1708167042268,-5049.471986,0.000538,2]
[314304302,1708167042277,-160.01,0.0005381,2]
[314304303,1708167042286,-3259.20053937,0.00053838,30]
[314304304,1708167042296,-7492.23221659,0.0005384,14]
[314304305,1708167042305,-3000.0,0.0005385,67]
[314304306,1708167042314,-7000.0,0.000539,100]
[314304307,1708167042323,-7301.69732635,0.000539,80]
[314304308,1708167042332,-152.62716441,0.000539,59]
[314304309,1708167042342,-179.301181,0.00053931,2]
[314304310,1708167042351,-160.0,0.00053973,120]
[314304311,1708167042360,-156989.02486819,0.0005399,14]
[314304312,1708167042375,-347.85167981,0.0005399,14]
[314304313,1708167042384,-201617.225627,0.0005399,12]
[314304314,1708167042392,-151.41,0.0005399,120]
[314304315,1708167042402,-20000.0,0.00054,120]
[314304316,1708167042411,-38346.21110232,0.00054,30]
[314304317,1708167042423,-2333.36605109,0.00054,30]
[314304318,1708167042435,-2157.88140298,0.00054,30]
[314304319,1708167043012,-2021.39607017,0.00054,30]
[314304320,1708167043120,-1098.68727929,0.00054,30]
[314304321,1708167043132,-655.0793876,0.00054,30]
[314304322,1708167043144,-6198.84,0.00054,30]
[314304323,1708167043176,-468.88619211,0.00054,30]
[314304324,1708167043187,-864.39749552,0.00054,30]
[314304325,1708167043199,-3569.47001647,0.00054,30]
[314304326,1708167043285,-3020.63715859,0.00054,30]
[314304327,1708167043297,-2221.48237207,0.00054,30]
[314304352,1708167046183,-455.19834646,0.00040933,2]
[314304353,1708167046192,-508.42818066,0.000534,14]
[314304354,1708167046201,-9599.90810258,0.00054,30]
[314304355,1708167046239,-356.15951883,0.00054,30]
[314304356,1708167046252,-521.79,0.00054,30]
[314304357,1708167046265,-22026.40950274,0.00054,30]
[314304358,1708167046276,-4539.39834764,0.00054,30]
[314304359,1708167046285,-1000.0,0.00054,10]
[314304360,1708167046294,-4002.56456754,0.00054,120]
[314304361,1708167046304,-8304.13496618,0.00054,120]
[314304362,1708167046318,-396.68688292,0.00054,120]
[314304363,1708167046329,-39303.56257287,0.00054,120]
[314304364,1708167046341,-978.32951094,0.00054,120]
[314304367,1708167070287,3445.69521339,0.00023,2]
[314304368,1708167070312,14989.6,0.00023,2]
[314304369,1708167070336,100000.0,0.00023,2]
[314304370,1708167070356,100000.0,0.00023,2]
[314304371,1708167070376,32306.08190236,0.00023,2]
[314304372,1708167219306,500.0,0.00022899,2]
[314304373,1708167219355,500.0,0.00022899,2]
[314304374,1708167231315,16693.91809764,0.00023,2]
[314304378,1708167248270,3273.60197752,0.0002,2]
[314304379,1708167257457,155.9802843,0.0002,2]
[314304381,1708167264045,156.55221049,0.00022,2]
[314304383,1708167271869,428.29277739,0.00023,3]
[314304384,1708167387090,354.68,0.00022,2]
[314304385,1708167390716,214.1463887,0.00023,3]
[314304386,1708167510734,214.14638869,0.00023,3]
[314304387,1708168039059,177.43,0.00022,2]
[314304388,1708168115803,10000.0,0.000245,3]
[314304389,1708168131253,10000.0,0.000245,3]
[314304390,1708168140926,10000.0,0.000245,3]
[314304391,1708168151595,10000.0,0.000245,3]
[314304392,1708168161094,5412.27308754,0.000245,3]
[314304393,1708168161120,4587.72691246,0.000245,3]
[314304394,1708168219022,10000.0,0.000245,3]
[314304395,1708168230190,10000.0,0.000245,3]
[314304402,1708168232467,-1047.79729017,0.00022543,2]
[314304403,1708168232477,-1604.20290983,0.00022544,2]
[314304408,1708168238197,-548.42278309,0.00022544,2]
[314304409,1708168238207,-177.43,0.00022548,2]
[314304410,1708168238217,-159.66240142,0.00022699,2]
[314304411,1708168238227,-150.0,0.00022799,2]
[314304413,1708168238236,-150.0,0.00022799,2]
[314304415,1708168238245,-4562.795,0.000228,2]
[314304416,1708168238255,-1000.0,0.000228,2]
[314304417,1708168238264,-5083.067,0.000228,2]
[314304418,1708168238274,-7206.3845,0.000228,2]
[314304419,1708168238283,-2500.0,0.000228,2]
[314304420,1708168238293,-179829.51737964,0.000229,2]
[314304421,1708168238310,-1045.84,0.000229,2]
[314304422,1708168238322,-3811.89028559,0.000229,2]
[314304423,1708168238362,-1000.15978095,0.000229,2]
[314304424,1708168238374,-59312.59255382,0.000229,2]
[314304425,1708168238384,-3687.80050258,0.000229,2]
[314304426,1708168238394,-1437.87726277,0.0002293,2]
[314304427,1708168238403,-152.06641792,0.0002293,2]
[314304428,1708168238415,-179.33173431,0.0002293,2]
[314304429,1708168238424,-178.61210797,0.0002293,2]
[314304430,1708168238433,-159.66240141,0.0002293,2]
[314304431,1708168238443,-339.23667236,0.0002293,2]
[314304432,1708168238453,-1000.0,0.00022999,2]
[314304433,1708168238463,-1000.0,0.00022999,2]
[314304434,1708168238472,-1000.0,0.00022999,2]
[314304435,1708168238481,-160.05272854,0.00022999,2]
[314304436,1708168238491,-86689.16857033,0.00023,2]
[314304437,1708168238533,10000.0,0.000245,3]
[314304442,1708168238786,-1595705.98241287,0.00023,2]
[314304443,1708168238795,-714.83,0.0002303,2]
[314304444,1708168238805,-177.43,0.00023096,2]
[314304445,1708168238814,-16529.22393424,0.0002313,2]
[314304446,1708168238827,-20866.08317019,0.000232,2]
[314304447,1708168238837,-5523.25,0.00023536,2]
[314304448,1708168238846,-177.43,0.00023644,2]
[314304449,1708168238858,-182.01,0.00023724,2]
[314304450,1708168238867,-177.43,0.00024192,2]
[314304451,1708168238876,-1437.87726277,0.00024282,2]
[314304452,1708168238886,-5095.5,0.00024384,2]
[314304453,1708168238896,-177.43,0.0002474,2]
[314304454,1708168238910,-993.41463732,0.00025,2]
[314304455,1708168238927,-210.0,0.00025079,2]
[314304456,1708168238943,-210.0,0.00025079,2]
[314304457,1708168238958,-4795.63436914,0.0002509,2]
[314304458,1708168238969,-5523.25,0.00025179,2]
[314304459,1708168238981,-339.23667233,0.00025206,2]
[314304460,1708168238995,-177.43,0.00025288,2]
[314304461,1708168239008,-191.01,0.00025565,2]
[314304462,1708168239023,-1007.19,0.00025565,2]
[314304463,1708168239037,-1438.79,0.00025568,2]
[314304464,1708168239051,-7777.34,0.00025613,2]
[314304465,1708168239062,-2000.0,0.00025621,2]
[314304466,1708168239074,-1437.87726277,0.00025634,2]
[314304467,1708168239090,-1007.19,0.00025699,2]
[314304468,1708168239102,-23900.0,0.00025795,2]
[314304469,1708168239115,-1007.19,0.00025834,2]
[314304470,1708168239128,-177.43,0.00025836,2]
[314304471,1708168239141,-1007.19,0.00025968,2]
[314304472,1708168239153,-1007.19,0.00026103,2]
[314304473,1708168239163,-1000.0,0.00026125,2]
[314304474,1708168239177,-236.10938594,0.0002615,2]
[314304475,1708168239190,-1007.19,0.00026237,2]
[314304476,1708168239203,-500.0,0.0002625,2]
[314304477,1708168239218,-869.95,0.00026329,2]
[314304478,1708168239230,-1007.19,0.00026372,2]
[314304479,1708168239242,-177.43,0.00026384,2]
[314304480,1708168239254,-162.89,0.00026454,2]
[314304481,1708168239267,-1007.19,0.00026506,2]
[314304482,1708168239281,-150.0,0.00026577,2]
[314304483,1708168239295,-1007.19,0.00026641,2]
[314304484,1708168239309,-1007.19,0.00026775,2]
[314304485,1708168239322,-5523.25,0.00026823,2]
[314304486,1708168239332,-1007.19,0.0002691,2]
[314304487,1708168239343,-177.43,0.00026932,2]
[314304488,1708168239354,-191.01,0.00026985,2]
[314304489,1708168239366,-1437.87726277,0.00026985,2]
[314304490,1708168239378,-499.99,0.00026985,2]
[314304491,1708168239391,-1007.19,0.00027045,2]
[314304492,1708168239404,-1007.19,0.00027179,2]
[314304493,1708168239415,-1007.19,0.00027314,2]
[314304494,1708168239426,-155.0,0.00027397,2]
[314304495,1708168239436,-1007.19,0.00027448,2]
[314304496,1708168239448,-177.43,0.0002748,2]
[314304497,1708168239461,-339.23667233,0.00027482,3]
[314304498,1708168239473,-1007.19,0.00027583,2]
[314304499,1708168239485,-293.0,0.00027587,2]
[314304500,1708168239496,-293.0,0.00027587,2]
[314304501,1708168239508,-3271.94788056,0.00027617,2]
[314304502,1708168239520,-186.0627007,0.0002762,2]
[314304503,1708168239531,-869.95,0.00027645,2]
[314304504,1708168239542,-1007.19,0.00027717,2]
[314304505,1708168239554,-178.61210794,0.0002772,2]
[314304506,1708168239566,-162.89,0.00027832,2]
[314304507,1708168239577,-1007.19,0.00027852,2]
[314304508,1708168239588,-1007.19,0.00027986,2]
[314304509,1708168239600,-1453.72275972,0.00027994,2]
[314304510,1708168239613,-470.59100194,0.00027999,2]
[314304511,1708168239624,-177.43,0.00028028,2]
[314304512,1708168239635,-500.0,0.00028088,2]
[314304513,1708168239647,-150.0,0.00028094,2]
[314304514,1708168239658,-20636.42,0.00028112,2]
[314304515,1708168239670,-1007.19,0.00028121,2]
[314304516,1708168239681,-250.0,0.00028141,2]
[314304517,1708168239693,-250.0,0.00028141,2]
[314304518,1708168239704,-20636.42,0.00028275,2]
[314304519,1708168239716,-1437.87726277,0.00028337,2]
[314304520,1708168239727,-191.01,0.00028405,2]
[314304521,1708168239739,-20636.42,0.00028437,2]
[314304522,1708168239750,-5523.25,0.00028467,2]
[314304523,1708168239762,-177.43,0.00028576,2]
[314304524,1708168239773,-20636.42,0.000286,2]
[314304525,1708168239785,-250.0,0.00028751,2]
[314304526,1708168239796,-20636.42,0.00028762,2]
[314304527,1708168239809,-155.0,0.00028767,2]
[314304528,1708168239820,-20636.42,0.00028925,2]
[314304529,1708168239831,-167.0,0.0002894,2]
[314304530,1708168239855,-869.95,0.00028962,2]
[314304531,1708168239873,-20636.42,0.00029087,2]
[314304532,1708168239889,-346.73926615,0.00029124,2]
[314304533,1708168239903,-500.0,0.00029202,2]
[314304534,1708168239917,-20636.42,0.0002925,2]
[314304535,1708168239930,-1000.0,0.0002939,2]
[314304536,1708168239943,-20636.42,0.00029412,2]
[314304537,1708168239956,-20636.42,0.00029574,2]
[314304538,1708168239968,-800.0,0.00029671,2]
[314304539,1708168239982,-1437.87726277,0.00029689,2]
[314304540,1708168239995,-151.12,0.00029729,2]
[314304541,1708168240006,-339.23667233,0.00029758,4]
[314304542,1708168240019,-191.01,0.00029825,2]
[314304543,1708168240032,-355.14,0.00029907,2]
[314304544,1708168240043,-1754.47,0.00029974,2]
[314304545,1708168240056,-4481.09295103,0.0003,2]
[314304546,1708168240069,-1133.30117333,0.0003,2]
[314304547,1708168240080,-275.27199979,0.0003,2]
[314304548,1708168240092,-1177.58646698,0.0003,4]
[314304549,1708168240104,-1861.66346308,0.0003,4]
[314304550,1708168240116,-5523.25,0.00030111,2]
[314304551,1708168240128,-155.0,0.00030137,2]
[314304552,1708168240140,-869.95,0.00030278,2]
[314304553,1708168240152,-167.0,0.00030532,2]
[314304554,1708168240164,-150.0,0.000308,2]
[314304555,1708168240177,-302.81215118,0.000308,5]
[314304556,1708168240189,-150.0,0.000308,2]
[314304557,1708168240199,-3000.0,0.000308,2]
[314304558,1708168240208,-3000.0,0.000308,2]
[314304559,1708168240219,-3000.0,0.000308,2]
[314304560,1708168240228,-3000.0,0.000308,2]
[314304561,1708168240412,-3000.0,0.000308,2]
[314304562,1708168240432,-3000.0,0.000308,2]
[314304563,1708168240442,-3000.0,0.000308,2]
[314304564,1708168240451,-3000.0,0.000308,2]
[314304565,1708168240461,-3000.0,0.000308,2]
[314304566,1708168240474,-3000.0,0.000308,2]
[314304567,1708168240484,-3000.0,0.000308,2]
[314304568,1708168240493,-3000.0,0.000308,2]
[314304569,1708168240503,-3000.0,0.000308,2]
[314304570,1708168240513,-3000.0,0.000308,2]
[314304571,1708168240525,-4842.90253915,0.000308,2]
[314304572,1708168240536,-156.4,0.00031008,2]
[314304573,1708168240547,-800.0,0.00031014,2]
[314304574,1708168240558,-205.0,0.00031041,2]
[314304575,1708168240569,-1437.87726277,0.00031041,2]
[314304576,1708168240580,-151.12,0.00031098,2]
[314304577,1708168240591,-191.01,0.00031246,2]
[314304578,1708168240602,-150.0,0.00031348,2]
[314304579,1708168240612,-150.0,0.00031348,2]
[314304580,1708168240622,-155.0,0.00031507,2]
[314304581,1708168240632,-869.95,0.00031595,2]
[314304582,1708168240643,-169.31,0.00031644,2]
[314304583,1708168240654,-5523.25,0.00031755,2]
[314304584,1708168240665,-307128.483708,0.000318,3]
[314304585,1708168240675,-150.0,0.00031896,2]
[314304587,1708168240685,-150.0,0.00031896,2]
[314304589,1708168240696,-339.23667233,0.00032034,5]
[314304590,1708168240706,-167.0,0.00032124,2]
[314304591,1708168240716,-355.14,0.00032171,2]
[314304592,1708168240726,-1437.87726277,0.00032393,4]
[314304593,1708168240736,-164.11335802,0.00032444,2]
[314304594,1708168240746,-150.0,0.00032444,2]
[314304596,1708168240755,-178.61210794,0.0003251,2]
[314304598,1708168240765,-156.4,0.00032619,2]
[314304599,1708168240774,-1000.0,0.00032656,2]
[314304600,1708168240783,-191.01,0.00032666,2]
[314304601,1708168240793,-37326.86,0.00032877,2]
[314304602,1708168240802,-155.0,0.00032877,2]
[314304603,1708168240812,-6073.0,0.000329,2]
[314304604,1708168240821,-150.0,0.00032992,2]
[314304605,1708168240830,-3271.94788055,0.0003324,2]
[314304606,1708168240840,-186.06270068,0.00033241,2]
[314304607,1708168240850,-212.32,0.00033249,2]
[314304608,1708168240862,-1453.72275971,0.00033428,2]
[314304609,1708168240871,-150.0,0.0003354,2]
[314304610,1708168240881,-167.0,0.00033717,2]
[314304611,1708168240890,-1437.87726277,0.00033745,5]
[314304612,1708168240901,-153.02700985,0.000339,2]
[314304613,1708168240910,-153.02700985,0.000339,2]
[314304614,1708168240920,-191.01,0.00034086,2]
[314304615,1708168240929,-150.0,0.00034088,2]
[314304616,1708168240941,-6073.32742096,0.000342,2]
[314304617,1708168240950,-156.4,0.00034229,2]
[314304618,1708168240959,-155.0,0.00034247,2]
[314304619,1708168240969,-339.23667233,0.0003431,6]
[314304620,1708168240978,-355.14,0.00034434,2]
[314304621,1708168240988,-1230.27996,0.0003452,2]
[314304622,1708168240997,-674.63044,0.0003452,2]
[314304623,1708168241010,-4921.119839,0.0003452,2]
[314304624,1708168241019,-4921.119839,0.0003452,2]
[314304625,1708168241028,-674.63044,0.0003452,2]
[314304626,1708168241037,-590.301635,0.0003452,2]
[314304627,1708168241046,-7381.679759,0.0003452,2]
[314304628,1708168241056,-1180.60327,0.0003452,2]
[314304629,1708168241065,-5536.259819,0.0003452,2]
[314304630,1708168241075,-3991.71,0.00034521,2]
[314304631,1708168241084,-150.0,0.00034636,2]
[314304632,1708168241094,-1845.41994,0.00034794,2]
[314304633,1708168241104,-1011.94566,0.00034794,2]
[314304634,1708168241113,-7381.679759,0.00034794,2]
[314304635,1708168241123,-7381.679759,0.00034794,2]
[314304636,1708168241134,-1011.94566,0.00034794,2]
[314304637,1708168241144,-885.452453,0.00034794,2]
[314304638,1708168241154,-11072.519639,0.00034794,2]
[314304639,1708168241164,-1770.904905,0.00034794,2]
[314304640,1708168241174,-8304.389729,0.00034794,2]
[314304641,1708168241185,-692.98486199,0.000349,2]
[314304642,1708168241195,-692.9848618,0.000349,2]
[314304643,1708168241207,-692.9848618,0.000349,2]
[314304644,1708168241217,-692.9848618,0.000349,2]
[314304645,1708168241227,-692.9848618,0.000349,2]
[314304646,1708168241238,-692.9848618,0.000349,2]
[314304647,1708168241247,-692.9848618,0.000349,2]
[314304648,1708168241257,-692.9848618,0.000349,2]
[314304649,1708168241267,-2460.55992,0.00034931,2]
[314304650,1708168241277,-1349.26088,0.00034931,2]
[314304651,1708168241286,-9842.239679,0.00034931,2]
[314304652,1708168241295,-9842.239679,0.00034931,2]
[314304653,1708168241308,-1349.26088,0.00034931,2]
[314304654,1708168241319,-1180.60327,0.00034931,2]
[314304655,1708168241329,-14763.359519,0.00034931,2]
[314304656,1708168241341,-2361.206541,0.00034931,2]
[314304657,1708168241351,-11072.519639,0.00034931,2]
[314304658,1708168241361,-230.08544777,0.00035,7]
[314304659,1708168241370,-4600.38653042,0.00035,4]
[314304660,1708168241380,-38661.45884693,0.00035,4]
[314304661,1708168241389,-15872.75458595,0.00035,7]
[314304662,1708168241398,-420.37567499,0.00035,2]
[314304663,1708168241407,-484.08793418,0.00035,2]
[314304664,1708168241416,-18211.22257101,0.00035,2]
[314304665,1708168241425,-160.02,0.00035061,2]
[314304666,1708168241434,-23233.57203364,0.00035065,2]
[314304667,1708168241443,-3075.6999,0.00035068,2]
[314304668,1708168241453,-1686.5761,0.00035068,2]
[314304669,1708168241462,-12302.799599,0.00035068,2]
[314304670,1708168241471,-12302.799599,0.00035068,2]
[314304671,1708168241480,-1686.576101,0.00035068,2]
[314304672,1708168241489,-1475.754088,0.00035068,2]
[314304673,1708168241498,-18454.199398,0.00035068,2]
[314304674,1708168241508,-2951.508176,0.00035068,2]
[314304675,1708168241517,-13840.649549,0.00035068,2]
[314304676,1708168241526,-66903.2779099,0.0003509,2]
[314304677,1708168241535,-1437.87726277,0.00035096,7]
[314304678,1708168241544,-178.83894219,0.00035184,2]
[314304679,1708168241555,-4305.97986,0.00035342,2]
[314304680,1708168241567,-2361.20654,0.00035342,2]
[314304681,1708168241576,-17223.919438,0.00035342,2]
[314304682,1708168241586,-17223.919439,0.00035342,2]
[314304683,1708168241596,-2361.206541,0.00035342,2]
[314304684,1708168241605,-2066.055723,0.00035342,2]
[314304685,1708168241614,-25835.879158,0.00035342,2]
[314304686,1708168241623,-4132.111446,0.00035342,2]
[314304687,1708168241632,-19376.909368,0.00035342,2]
[314304688,1708168241642,-160.02,0.00035499,2]
[314304689,1708168241651,-191.01,0.00035506,2]
[314304690,1708168241660,-692.9848618,0.00035562,2]
[314304691,1708168241669,-500.0,0.00035616,2]
[314304692,1708168241678,-500.0,0.00035616,2]
[314304693,1708168241687,-500.0,0.00035616,2]
[314304694,1708168241697,-500.0,0.00035616,2]
[314304695,1708168241706,-500.0,0.00035616,2]
[314304696,1708168241716,-500.0,0.00035616,2]
[314304697,1708168241726,-500.0,0.00035616,2]
[314304698,1708168241735,-500.0,0.00035616,2]
[314304699,1708168241744,-500.0,0.00035616,2]
[314304700,1708168241754,-500.0,0.00035616,2]
[314304701,1708168241764,-500.0,0.00035616,2]
[314304702,1708168241773,-500.0,0.00035616,2]
[314304703,1708168241783,-500.0,0.00035616,2]
[314304704,1708168241792,-500.0,0.00035616,2]
[314304705,1708168241801,-500.0,0.00035616,2]
[314304706,1708168241814,-500.0,0.00035616,2]
[314304707,1708168241823,-500.0,0.00035616,2]